bitfinex-derivatives/quotes_BTCF0:USTF0_20251229
["timestamp","ask_amount","ask_price","bid_price","bid_amount"]
[1766998545982,0.095,89574.0,89554.0,0.0111795]
[1766998546280,0.095,89574.0,89554.0,0.0411795]
[1766998546477,0.0111752,89590.0,89557.0,0.0111791]
[1766998546785,1.545,89593.0,89564.0,0.0111782]
[1766998547080,0.0111759,89584.0,89565.0,0.15104]
[1766998547278,0.0111759,89584.0,89565.0,0.18104]
[1766998547480,0.00016744,89583.0,89566.0,0.00016744]
[1766998547778,0.00016744,89583.0,89566.0,0.03016744]
[1766998548680,0.01134344,89583.0,89566.0,0.03016744]
[1766998548882,0.0111763,89581.0,89567.0,0.15104]
[1766998549075,0.0111763,89581.0,89567.0,0.18104]
[1766998549277,0.0111762,89582.0,89567.0,0.18104]
[1766998551187,0.0111764,89580.0,89567.0,0.18104]
[1766998551380,0.0111764,89580.0,89566.0,0.00016744]
[1766998551572,0.0111764,89580.0,89567.0,0.15104]
[1766998552282,0.00016744,89583.0,89566.0,0.00016744]
[1766998552684,0.0111769,89576.0,89566.0,0.00016744]
[1766998554885,0.0111771,89574.0,89566.0,0.00016744]
[1766998555087,0.0111777,89570.0,89549.0,0.0111801]
[1766998555381,0.011177,89576.0,89554.0,0.0111795]
[1766998555586,0.011177,89576.0,89556.0,0.0111793]
[1766998555887,0.011177,89576.0,89557.0,0.05604]
[1766998556186,0.0111772,89574.0,89558.0,0.00016744]
[1766998558494,0.0111774,89572.0,89558.0,0.00016744]
[1766998559286,0.0111773,89573.0,89558.0,0.00016744]
[1766998560388,0.0111766,89578.0,89558.0,0.03016744]
[1766998560784,0.0111763,89581.0,89561.0,0.0111786]
[1766998560979,0.0111765,89579.0,89561.0,0.0411786]
[1766998561178,0.0111765,89579.0,89561.0,0.03]
[1766998561786,0.00016744,89583.0,89562.0,0.20660452]
[1766998561979,0.09496,89591.0,89570.0,0.1780093]
[1766998562177,0.09496,89591.0,89576.0,0.0111768]
[1766998562374,0.09496,89591.0,89573.0,0.0111772]
[1766998562577,0.09496,89591.0,89573.0,0.0411772]
[1766998562885,0.0111753,89589.0,89573.0,0.03]
[1766998563285,0.09512744,89591.0,89573.0,0.03]
[1766998563783,0.09512744,89591.0,89573.0,0.0411772]
[1766998564287,0.10630244,89591.0,89573.0,0.0411772]
[1766998564681,0.0111753,89589.0,89572.0,0.09496]
[1766998564880,0.0111758,89585.0,89565.0,0.0111781]
[1766998565080,0.09512744,89591.0,89566.0,0.151]
[1766998565280,0.09512744,89591.0,89567.0,0.05604]
[1766998565480,0.09512744,89591.0,89567.0,0.08604]
[1766998565681,0.0111755,89587.0,89567.0,0.0972179]
[1766998566285,0.09512744,89591.0,89570.0,0.0111776]
[1766998566485,0.10630244,89591.0,89570.0,0.0411776]
[1766998566986,0.10630244,89591.0,89570.0,0.0111776]
[1766998567191,0.0111753,89589.0,89570.0,0.0111776]
[1766998567382,0.0111753,89589.0,89570.0,0.0411776]
[1766998567590,0.09512744,89591.0,89570.0,0.0411776]
[1766998567789,0.09512744,89591.0,89570.0,0.03]
[1766998567989,0.09512744,89591.0,89574.0,0.011177]
[1766998568289,0.09512744,89591.0,89574.0,0.041177]
[1766998568785,0.09512744,89591.0,89574.0,0.03]
[1766998568988,0.09512744,89591.0,89580.0,0.0111763]
[1766998569286,0.09512744,89591.0,89575.0,0.05604]
[1766998569287,0.09512744,89591.0,89577.0,0.01134414]
[1766998569482,0.00016744,89591.0,89577.0,0.13630414]
[1766998573490,0.00016744,89591.0,89577.0,0.12512744]
[1766998573996,0.00016744,89591.0,89578.0,0.0111766]
[1766998574293,0.00016744,89591.0,89578.0,0.0411766]
[1766998574496,0.00016744,89591.0,89580.0,0.17791193]
[1766998574688,0.00016744,89591.0,89580.0,0.20791193]
[1766998574992,0.00016744,89591.0,89581.0,0.05604]
[1766998575196,0.00016744,89591.0,89581.0,0.08604]
[1766998575397,0.0111741,89598.0,89581.0,0.08604]
[1766998575797,0.05604,89600.0,89588.0,0.17791193]
[1766998576189,0.05604,89600.0,89588.0,0.20791193]
[1766998576396,0.09496,89601.0,89588.0,0.20791193]
[1766998576695,0.05019126,89601.0,89588.0,0.03]
[1766998576996,0.05019126,89601.0,89590.0,0.17791193]
[1766998577190,0.0111739,89600.0,89590.0,0.17791193]
[1766998577587,0.0111733,89605.0,89590.0,0.17791193]
[1766998577794,0.0111742,89598.0,89587.0,0.056]
[1766998580494,0.0111742,89598.0,89580.0,0.18908823]
[1766998580699,0.0111742,89598.0,89581.0,0.15096]
[1766998580999,0.0111742,89598.0,89581.0,0.18096]
[1766998582195,0.0111741,89598.0,89581.0,0.18096]
[1766998583496,0.0111744,89596.0,89581.0,0.18096]
[1766998584604,0.0111744,89596.0,89582.0,0.05583]
[1766998584795,0.0111744,89596.0,89582.0,0.08583]
[1766998585304,0.011174,89599.0,89582.0,0.08583]
[1766998586099,0.0111737,89602.0,89582.0,0.08583]
[1766998586303,0.0111737,89602.0,89582.0,0.097006]
[1766998586496,0.0111739,89600.0,89582.0,0.097006]
[1766998586901,0.011175,89591.0,89582.0,0.08583]
[1766998588704,0.0111755,89587.0,89577.0,0.05616744]
[1766998588905,0.09496,89598.0,89577.0,0.08616744]
[1766998589107,0.09496,89598.0,89578.0,0.056]
[1766998589302,0.09496,89598.0,89578.0,0.086]
[1766998590106,0.0111753,89589.0,89578.0,0.086]
[1766998590899,0.0111753,89589.0,89578.0,0.03]
[1766998591107,0.0111753,89589.0,89579.0,0.056]
[1766998591305,0.0111753,89589.0,89579.0,0.086]
[1766998593807,0.0111749,89592.0,89579.0,0.086]
[1766998594403,0.09496,89598.0,89579.0,0.086]
[1766998594603,0.056,89606.0,89579.0,0.086]
[1766998594604,0.056,89606.0,89588.0,0.17791193]
[1766998594804,0.0111735,89604.0,89590.0,0.17791193]
[1766998595609,0.0111737,89602.0,89590.0,0.17791193]
[1766998596602,0.056,89606.0,89590.0,0.17791193]
[1766998596900,0.056,89606.0,89589.0,0.056]
[1766998597314,0.0111734,89604.0,89590.0,0.17791193]
[1766998597910,0.0111734,89604.0,89590.0,0.20791193]
[1766998598810,0.0111737,89602.0,89590.0,0.20791193]
[1766998599310,0.056,89610.0,89590.0,0.20791193]
[1766998599311,0.0111733,89605.0,89590.0,0.20791193]
[1766998600215,0.0111729,89608.0,89590.0,0.20791193]
[1766998600413,0.056,89610.0,89590.0,0.20791193]
[1766998600607,0.0111734,89604.0,89590.0,0.03]
[1766998601005,0.011173,89607.0,89590.0,0.03]
[1766998602108,0.011174,89599.0,89590.0,0.086]
[1766998602615,0.0111745,89595.0,89590.0,0.01]
[1766998602816,0.0111742,89598.0,89590.0,0.01]
[1766998604216,0.0111738,89601.0,89590.0,0.01]
[1766998604412,0.0111733,89605.0,89590.0,0.18791193]
[1766998605116,0.23391193,89610.0,89590.0,0.01]
[1766998605309,0.0111741,89598.0,89590.0,0.01]
[1766998606816,0.0111749,89592.0,89584.0,0.09496]
[1766998607020,0.0111749,89592.0,89584.0,0.03]
[1766998607315,0.0111751,89590.0,89584.0,0.03]
[1766998607510,0.17791193,89600.0,89584.0,0.066]
[1766998607718,0.0111736,89602.0,89584.0,0.066]
[1766998608118,0.0111749,89592.0,89584.0,0.066]
[1766998609719,0.0111752,89589.0,89584.0,0.066]
[1766998610423,0.0111752,89589.0,89584.0,0.01]
[1766998610622,0.0111752,89589.0,89584.0,0.066]
[1766998611116,0.0111738,89601.0,89584.0,0.066]
[1766998612014,0.011175,89591.0,89584.0,0.066]
[1766998612318,0.0111738,89601.0,89584.0,0.066]
[1766998612523,0.0111752,89589.0,89584.0,0.056]
[1766998612726,0.0111752,89589.0,89583.0,0.056]
[1766998612924,0.0111752,89589.0,89583.0,0.086]
[1766998614429,0.0111752,89589.0,89584.0,0.056]
[1766998614724,0.0111738,89601.0,89584.0,0.03]
[1766998615030,0.0111752,89590.0,89584.0,0.086]
[1766998615228,0.0111728,89609.0,89584.0,0.086]
[1766998615526,1.5,89611.0,89590.0,0.17791193]
[1766998615724,1.5,89611.0,89590.0,0.26391193]
[1766998616424,0.0111735,89603.0,89590.0,0.086]
[1766998616730,0.0111735,89603.0,89590.0,0.26391193]
[1766998617828,0.17791193,89610.0,89590.0,0.01]
[1766998618025,0.0111744,89596.0,89590.0,0.01]
[1766998618426,0.0111737,89601.0,89590.0,0.01]
[1766998620332,0.0111734,89604.0,89590.0,0.01]
[1766998622225,0.011173,89607.0,89590.0,0.01]
[1766998622632,0.0111726,89610.0,89590.0,0.01]
[1766998622824,1.5,89611.0,89590.0,0.01]
[1766998624332,1.5,89611.0,89591.0,0.0111749]
[1766998624531,0.0111724,89612.0,89591.0,0.0411749]
[1766998625036,1.5111724,89612.0,89591.0,0.0411749]
[1766998626027,4.1585,89600.0,89591.0,0.0411749]
[1766998626230,3.18221257,89600.0,89591.0,0.0411749]
[1766998629436,3.18221257,89600.0,89593.0,0.0111746]
[1766998629637,3.18221257,89600.0,89594.0,0.056]
[1766998629832,3.18221257,89600.0,89594.0,0.086]
[1766998636835,2.59858543,89600.0,89594.0,0.086]
[1766998643242,2.59858543,89600.0,89581.0,0.04018198]
[1766998643443,2.59858543,89600.0,89585.0,0.0111757]
[1766998643764,2.59858543,89600.0,89585.0,0.03]
[1766998643964,2.59858543,89600.0,89586.0,0.15096]
[1766998644269,2.59858543,89600.0,89586.0,0.18096]
[1766998644960,0.0111743,89597.0,89586.0,0.18096]
[1766998645655,0.0111741,89598.0,89586.0,0.03]
[1766998645862,0.0111741,89598.0,89587.0,0.22049]
[1766998646061,0.0111741,89598.0,89587.0,0.25049]
[1766998649862,2.59858543,89600.0,89587.0,0.25049]
[1766998650064,0.0111754,89588.0,89587.0,0.03]
[1766998650266,0.0111749,89592.0,89586.0,0.056]
[1766998650466,0.0111749,89592.0,89585.0,0.056]
[1766998650767,0.0111749,89592.0,89585.0,0.03]
[1766998651263,0.0111749,89592.0,89583.0,0.03]
[1766998651662,0.0111749,89592.0,89582.0,0.056]
[1766998652368,0.056,89599.0,89574.0,0.09496]
[1766998652565,0.02343311,89598.0,89575.0,0.008]
[1766998652772,0.02343311,89597.0,89575.0,0.038]
[1766998652972,0.02343311,89596.0,89576.0,0.056]
[1766998653168,0.0111755,89587.0,89576.0,0.02]
[1766998653369,0.0111758,89585.0,89577.0,0.07792]
[1766998653872,0.056,89589.0,89573.0,0.00016744]
[1766998654066,0.056,89589.0,89573.0,0.03016744]
[1766998654272,0.0111758,89585.0,89573.0,0.03016744]
[1766998654676,0.0111754,89588.0,89573.0,0.03016744]
[1766998654866,0.0111756,89586.0,89573.0,0.03016744]
[1766998655170,0.0111762,89582.0,89573.0,0.03016744]
[1766998655964,0.0111754,89588.0,89573.0,0.03016744]
[1766998656266,0.056,89589.0,89573.0,0.00016744]
[1766998656267,0.0111757,89586.0,89573.0,0.00016744]
[1766998657372,0.056,89589.0,89573.0,0.00016744]
[1766998658176,0.0111755,89587.0,89573.0,0.00016744]
[1766998661076,0.0111754,89588.0,89573.0,0.00016744]
[1766998663271,0.056,89589.0,89573.0,0.03016744]
[1766998663479,0.056,89589.0,89574.0,0.0111771]
[1766998663781,0.056,89589.0,89579.0,0.0111763]
[1766998663981,0.056,89589.0,89579.0,0.0411763]
[1766998664574,0.00016744,89590.0,89579.0,0.0411763]
[1766998664774,0.00016744,89590.0,89579.0,0.03]
[1766998665771,0.056,89595.0,89579.0,0.03]
[1766998665972,0.056,89595.0,89580.0,0.056]
[1766998666173,0.056,89595.0,89580.0,0.086]
[1766998666984,0.056,89595.0,89582.0,0.011176]
[1766998667179,0.056,89595.0,89582.0,0.041176]
[1766998669683,2.59858543,89600.0,89582.0,0.041176]
[1766998669881,0.07939949,89599.0,89584.0,0.0111758]
[1766998670077,0.056,89599.0,89584.0,0.0411758]
[1766998670378,1.97099073,89600.0,89584.0,0.03]
[1766998670577,0.67938069,89600.0,89585.0,0.11161835]
[1766998670779,0.49617069,89600.0,89586.0,0.056]
[1766998670979,0.49617069,89600.0,89586.0,0.086]
[1766998671384,0.49617069,89600.0,89591.0,0.0111749]
[1766998671587,0.49617069,89600.0,89591.0,0.0411749]
[1766998672078,0.49617069,89600.0,89593.0,0.0111747]
[1766998672278,0.49617069,89600.0,89593.0,0.0411747]
[1766998673580,0.49617069,89600.0,89593.0,0.03]
[1766998677482,0.49617069,89600.0,89592.0,0.056]
[1766998677684,0.49617069,89600.0,89589.0,0.09496]
[1766998677685,0.49617069,89600.0,89593.0,0.056]
[1766998678086,0.49617069,89600.0,89593.0,0.086]
[1766998681083,0.49617069,89600.0,89593.0,0.04]
[1766998681282,0.49617069,89600.0,89586.0,0.056]
[1766998681283,0.067174,89599.0,89586.0,0.056]
[1766998681582,0.056,89599.0,89576.0,0.09496]
[1766998681784,0.17790184,89590.0,89577.0,0.056]
[1766998681986,0.0111745,89595.0,89577.0,0.086]
[1766998682390,0.0111745,89595.0,89578.0,0.056]
[1766998682578,0.0111745,89595.0,89578.0,0.086]
[1766998683390,0.0111745,89595.0,89579.0,0.056]
[1766998683692,0.0111745,89595.0,89579.0,0.086]
[1766998684395,0.17790184,89590.0,89574.0,0.106137]
[1766998684694,0.0111748,89593.0,89574.0,0.106137]
[1766998684695,0.056,89593.0,89575.0,0.056]
[1766998684896,0.056,89593.0,89575.0,0.086]
[1766998685388,0.056,89593.0,89579.0,0.0111763]
[1766998685589,0.056,89593.0,89579.0,0.0411763]
[1766998689294,0.056,89593.0,89579.0,0.03]
[1766998689485,0.056,89593.0,89583.0,0.0111759]
[1766998689795,0.056,89593.0,89583.0,0.03]
[1766998691990,0.056,89593.0,89583.0,0.0411759]
[1766998692193,0.056,89593.0,89587.0,0.0111754]
[1766998692392,0.056,89593.0,89587.0,0.0411754]
[1766998693800,0.056,89593.0,89589.0,0.0111752]
[1766998694003,0.056,89593.0,89589.0,0.0411752]
[1766998694309,0.056,89598.0,89591.0,0.0111749]
[1766998695803,0.056,89598.0,89593.0,0.0111746]
[1766998696099,0.056,89598.0,89590.0,0.011175]
[1766998696599,0.056,89598.0,89592.0,0.0111748]
[1766998697003,0.056,89598.0,89581.0,0.056]
[1766998697300,0.056,89598.0,89581.0,0.086]
[1766998697799,0.49617069,89600.0,89594.0,0.0111746]
[1766998698003,0.49617069,89600.0,89594.0,0.0411746]
[1766998699000,9e-08,89600.0,89596.0,0.0111743]
[1766998699297,9e-08,89600.0,89593.0,0.0111746]
[1766998699600,9e-08,89600.0,89593.0,0.0411746]
[1766998699799,9e-08,89600.0,89593.0,0.03]
[1766998701398,9e-08,89600.0,89593.0,0.0411747]
[1766998701787,9e-08,89600.0,89593.0,0.03]
[1766998705804,9e-08,89600.0,89593.0,0.0411747]
[1766998706097,9e-08,89600.0,89593.0,0.03]
[1766998709903,0.056,89602.0,89593.0,0.03]
[1766998713208,0.056,89602.0,89594.0,0.0111746]
[1766998713410,0.09496,89608.0,89594.0,0.03]
[1766998713795,0.09496,89608.0,89597.0,0.0111741]
[1766998714001,0.0671718,89617.0,89597.0,0.0411741]
[1766998714309,0.0671718,89617.0,89597.0,0.03]
[1766998714310,0.02357658,89616.0,89597.0,0.03]
[1766998714508,0.02357658,89615.0,89597.0,0.03]
[1766998714708,0.0671718,89617.0,89597.0,0.03]
[1766998714709,0.02357658,89614.0,89597.0,0.03]
[1766998714911,0.02357658,89613.0,89597.0,0.03]
[1766998715202,0.02357658,89612.0,89597.0,0.03]
[1766998715410,0.011172,89615.0,89597.0,0.03]
[1766998715613,0.02357129,89614.0,89597.0,0.03]
[1766998715805,0.02357129,89613.0,89597.0,0.03]
[1766998716002,0.02357129,89612.0,89597.0,0.03]
[1766998716203,0.011172,89615.0,89597.0,0.03]
[1766998716403,0.02357041,89614.0,89597.0,0.03]
[1766998716612,0.011172,89615.0,89597.0,0.03]
[1766998716613,0.02357041,89613.0,89597.0,0.03]
[1766998716904,0.02357041,89612.0,89597.0,0.03]
[1766998717108,0.011172,89615.0,89597.0,0.03]
[1766998717315,0.02357034,89614.0,89597.0,0.03]
[1766998717506,0.011172,89615.0,89597.0,0.03]
[1766998718802,0.056,89617.0,89597.0,0.0411742]
[1766998719008,0.02356978,89616.0,89597.0,0.0411742]
[1766998719310,0.056,89617.0,89600.0,0.17790184]
[1766998719611,0.02356869,89616.0,89600.0,0.03]
[1766998719910,0.056,89617.0,89600.0,0.03]
[1766998720110,0.02356869,89616.0,89600.0,0.03]
[1766998720410,0.056,89617.0,89600.0,0.03]
[1766998720713,0.02356822,89616.0,89600.0,0.03]
[1766998720904,0.056,89617.0,89600.0,0.03]
[1766998721206,0.011172,89615.0,89600.0,0.03]
[1766998722510,0.011172,89615.0,89601.0,0.00968]
[1766998722707,0.17790184,89611.0,89592.0,0.00016744]
[1766998722904,0.011173,89608.0,89592.0,0.00016744]
[1766998723307,0.17790184,89610.0,89592.0,0.03016744]
[1766998723703,0.056,89617.0,89592.0,0.03016744]
[1766998723704,0.0111724,89612.0,89592.0,0.03016744]
[1766998723904,0.02357063,89611.0,89592.0,0.03016744]
[1766998724104,0.0111724,89612.0,89592.0,0.03016744]
[1766998724311,0.02357065,89611.0,89592.0,0.03016744]
[1766998724514,0.0111724,89612.0,89592.0,0.03016744]
[1766998724705,0.02357156,89611.0,89593.0,0.0111747]
[1766998724908,0.011172,89615.0,89593.0,0.0411747]
[1766998725213,0.02357158,89614.0,89593.0,0.0411747]
[1766998725413,0.02357158,89613.0,89593.0,0.0411747]
[1766998725605,0.02357158,89612.0,89593.0,0.0411747]
[1766998725805,0.02357158,89611.0,89593.0,0.03]
[1766998726004,0.0111723,89613.0,89593.0,0.03]
[1766998726206,0.0111725,89611.0,89593.0,0.03]
[1766998727011,0.056,89617.0,89593.0,0.03]
[1766998727211,0.02357336,89616.0,89593.0,0.03]
[1766998727414,0.02357336,89615.0,89593.0,0.03]
[1766998727718,0.0111727,89610.0,89593.0,0.03]
[1766998728013,0.056,89609.0,89593.0,0.03]
[1766998731917,0.056,89609.0,89593.0,0.0411747]
[1766998732117,0.056,89609.0,89593.0,0.03]
[1766998732812,0.21241052,89620.0,89593.0,0.03]
[1766998733016,0.21241052,89620.0,89600.0,0.18907564]
[1766998733017,0.17453828,89619.0,89600.0,0.18907564]
[1766998733212,0.02357828,89618.0,89600.0,0.21907564]
[1766998733610,0.02357828,89618.0,89600.0,0.20790184]
[1766998734215,0.02357828,89618.0,89600.0,0.03]
[1766998734512,0.02357828,89618.0,89600.0,0.20790184]
[1766998734711,0.02357828,89618.0,89601.0,0.0111737]
[1766998734916,0.02357828,89618.0,89601.0,0.03]
[1766998735516,0.17790184,89611.0,89592.0,0.00016744]
[1766998735718,0.0111727,89610.0,89593.0,0.15096]
[1766998735918,0.0111727,89610.0,89593.0,0.18096]
[1766998736321,0.0111719,89616.0,89593.0,0.18096]
[1766998736525,0.02355945,89615.0,89593.0,0.18096]
[1766998736720,0.02355945,89614.0,89593.0,0.18096]
[1766998737025,0.0111719,89616.0,89594.0,0.056]
[1766998737232,0.0235594,89615.0,89594.0,0.086]
[1766998737420,0.0235594,89614.0,89594.0,0.086]
[1766998737621,0.0111719,89616.0,89594.0,0.086]
[1766998737823,0.02356077,89615.0,89594.0,0.086]
[1766998738020,0.02356077,89614.0,89594.0,0.086]
[1766998738221,0.0111719,89616.0,89594.0,0.086]
[1766998738421,0.02356244,89615.0,89594.0,0.086]
[1766998738623,0.02356244,89614.0,89594.0,0.086]
[1766998738820,0.0111719,89616.0,89594.0,0.086]
[1766998739026,0.02356239,89615.0,89594.0,0.086]
[1766998739228,0.02356239,89614.0,89594.0,0.086]
[1766998739531,0.15096,89619.0,89594.0,0.086]
[1766998739532,0.0111725,89612.0,89594.0,0.03]
[1766998739833,0.0111725,89612.0,89595.0,0.056]
[1766998740027,0.011172,89615.0,89595.0,0.086]
[1766998740228,0.02356433,89614.0,89595.0,0.086]
[1766998740425,0.02356433,89613.0,89595.0,0.086]
[1766998740631,0.15096,89619.0,89595.0,0.086]
[1766998740822,0.0111723,89613.0,89596.0,0.056]
[1766998741024,0.0111728,89609.0,89592.0,0.00016744]
[1766998741226,0.0111728,89609.0,89592.0,0.03016744]
[1766998741425,0.0111728,89609.0,89593.0,0.056]
[1766998741625,0.0111728,89609.0,89593.0,0.086]
[1766998742430,0.02357017,89608.0,89593.0,0.086]
[1766998742636,0.02357017,89607.0,89593.0,0.086]
[1766998742834,0.0671724,89612.0,89593.0,0.086]
[1766998743035,0.02357113,89611.0,89593.0,0.086]
[1766998743231,0.02357113,89610.0,89593.0,0.086]
[1766998743433,0.02357113,89609.0,89593.0,0.086]
[1766998743632,0.02357113,89608.0,89593.0,0.086]
[1766998743833,0.02357113,89607.0,89593.0,0.086]
[1766998744027,0.0671724,89612.0,89593.0,0.086]
[1766998744336,0.02357256,89611.0,89593.0,0.086]
[1766998744527,0.03474516,89610.0,89593.0,0.086]
[1766998744727,0.02357256,89609.0,89593.0,0.086]
[1766998745046,0.02357256,89608.0,89593.0,0.086]
[1766998745228,0.02357256,89607.0,89593.0,0.086]
[1766998745429,0.0111726,89610.0,89593.0,0.086]
[1766998745629,0.02357055,89609.0,89593.0,0.086]
[1766998745840,0.02357055,89608.0,89593.0,0.086]
[1766998746133,0.02357055,89607.0,89593.0,0.086]
[1766998746324,0.02357055,89606.0,89593.0,0.086]
[1766998746526,0.0111726,89610.0,89593.0,0.086]
[1766998746730,0.02356963,89609.0,89593.0,0.086]
[1766998746927,0.02356963,89608.0,89593.0,0.086]
[1766998747136,0.02356963,89607.0,89593.0,0.086]
[1766998747337,0.02356963,89606.0,89593.0,0.03]
[1766998747536,0.0111726,89610.0,89593.0,0.086]
[1766998747724,0.02356911,89609.0,89593.0,0.086]
[1766998747928,0.02356911,89608.0,89593.0,0.086]
[1766998748123,0.02356911,89607.0,89593.0,0.086]
[1766998748338,0.0111726,89610.0,89593.0,0.086]
[1766998748638,0.02356966,89609.0,89594.0,0.0015]
[1766998748938,0.02356966,89608.0,89594.0,0.0315]
[1766998749137,0.02356966,89607.0,89594.0,0.0315]
[1766998749322,0.0111729,89608.0,89594.0,0.0315]
[1766998749526,0.02356979,89607.0,89594.0,0.0315]
[1766998749724,0.0111729,89608.0,89594.0,0.0315]
[1766998749940,0.02356969,89607.0,89594.0,0.0315]
[1766998750136,0.0111729,89608.0,89594.0,0.0315]
[1766998750340,0.02356967,89607.0,89594.0,0.0315]
[1766998750540,0.0111729,89608.0,89594.0,0.0315]
[1766998750838,0.02356971,89607.0,89594.0,0.0315]
[1766998751040,0.02356971,89606.0,89594.0,0.0315]
[1766998751238,0.0111732,89605.0,89594.0,0.0315]
[1766998751739,0.056,89612.0,89594.0,0.0315]
[1766998751941,0.02356979,89611.0,89594.0,0.0315]
[1766998752129,0.0111734,89604.0,89594.0,0.0315]
[1766998752634,0.0111734,89604.0,89594.0,0.0015]
[1766998753332,0.09496,89609.0,89594.0,0.0015]
[1766998753536,0.02356743,89608.0,89594.0,0.0015]
[1766998753732,0.0111735,89603.0,89594.0,0.0015]
[1766998755043,0.09496,89609.0,89592.0,0.00016744]
[1766998755247,0.0111742,89597.0,89582.0,0.04528]
[1766998755446,0.0111742,89597.0,89583.0,0.04528]
[1766998755644,0.0111739,89600.0,89583.0,0.07528]
[1766998756336,0.0111742,89597.0,89583.0,0.07544744]
[1766998756841,0.0111745,89595.0,89583.0,0.07544744]
[1766998758038,0.0111744,89596.0,89584.0,0.04944]
[1766998758440,0.011174,89599.0,89584.0,0.04944]
[1766998759646,0.0111743,89597.0,89584.0,0.04944]
[1766998762448,0.01134134,89600.0,89584.0,0.04944]
[1766998762743,0.02353729,89599.0,89584.0,0.04944]
[1766998762950,0.00016744,89600.0,89584.0,0.07944]
[1766998763649,0.00016744,89600.0,89587.0,0.0111754]
[1766998763837,0.00016744,89600.0,89587.0,0.03]
[1766998765245,0.02353751,89599.0,89587.0,0.03]
[1766998765449,0.00016744,89600.0,89587.0,0.03]
[1766998765652,0.02353721,89599.0,89588.0,0.0111753]
[1766998765948,0.00016744,89600.0,89588.0,0.0411753]
[1766998766449,0.02353862,89599.0,89588.0,0.03]
[1766998766650,0.00016744,89600.0,89588.0,0.03]
[1766998766847,0.02353845,89599.0,89588.0,0.03]
[1766998767050,0.00016744,89600.0,89588.0,0.03]
[1766998769249,0.02354511,89599.0,89588.0,0.0411753]
[1766998769451,0.00016744,89600.0,89588.0,0.03]
[1766998772753,0.01134134,89600.0,89588.0,0.03]
[1766998773444,0.0111741,89598.0,89588.0,0.03]
[1766998773645,0.0111742,89597.0,89584.0,0.04944]
[1766998773851,0.01134134,89600.0,89584.0,0.04944]
[1766998774041,0.01134134,89600.0,89584.0,0.07944]
[1766998774850,0.01134134,89600.0,89585.0,0.0111756]
[1766998775751,0.01134134,89600.0,89584.0,0.04944]
[1766998775954,0.01134134,89600.0,89584.0,0.07944]
[1766998777945,0.00016744,89600.0,89584.0,0.07944]
[1766998778453,0.00016744,89600.0,89586.0,0.0111755]
[1766998778653,0.01134134,89600.0,89586.0,0.03]
[1766998779448,0.0111742,89598.0,89586.0,0.03]
[1766998780644,0.0111741,89598.0,89586.0,0.03]
[1766998782056,0.0111741,89598.0,89584.0,0.04944]
[1766998782254,0.0111741,89598.0,89584.0,0.07944]
[1766998782650,0.00016744,89600.0,89584.0,0.07944]
[1766998782848,0.011174,89599.0,89584.0,0.07944]
[1766998783746,0.00016744,89600.0,89584.0,0.0906158]
[1766998786144,0.02346632,89599.0,89584.0,0.0906158]
[1766998786458,0.0111735,89603.0,89584.0,0.0906157]
[1766998786646,0.09496,89609.0,89584.0,0.0906157]
[1766998786847,0.09496,89609.0,89586.0,0.0111755]
[1766998787054,0.09496,89609.0,89586.0,0.0411755]
[1766998787550,0.0111724,89612.0,89586.0,0.03]
[1766998787752,0.15092,89611.0,89591.0,0.0111749]
[1766998787952,0.09496,89610.0,89591.0,0.0411749]
[1766998788255,0.0111733,89605.0,89591.0,0.03]
[1766998788446,0.0111731,89606.0,89591.0,0.03]
[1766998788647,0.0111731,89607.0,89591.0,0.03]
[1766998788847,0.0111733,89605.0,89591.0,0.03]
[1766998792054,0.09496,89610.0,89591.0,0.03]
[1766998792549,0.0111728,89609.0,89591.0,0.03]
[1766998792750,0.09496,89610.0,89591.0,0.03]
[1766998793551,0.0111728,89609.0,89591.0,0.03]
[1766998795261,0.011173,89607.0,89591.0,0.03]
[1766998796654,0.09496,89610.0,89591.0,0.03]
[1766998797257,0.0111732,89606.0,89591.0,0.03]
[1766998798255,0.0111728,89609.0,89591.0,0.03]
[1766998800364,0.2485708,89625.0,89591.0,0.03]
[1766998800365,0.067133,89608.0,89591.0,0.03]
[1766998800561,0.15092,89608.0,89591.0,0.03]
[1766998800761,0.15092,89608.0,89592.0,0.0111748]
[1766998800950,0.15092,89608.0,89592.0,0.0411748]
[1766998801154,0.15092,89608.0,89595.0,0.0111744]
[1766998801355,0.15092,89609.0,89595.0,0.0411744]
[1766998801662,0.15092,89609.0,89597.0,0.0111742]
[1766998801854,0.15092,89609.0,89599.0,0.0111739]
[1766998802055,0.05596,89613.0,89600.0,0.0111738]
[1766998802256,0.05596,89613.0,89600.0,0.0411738]
[1766998802457,0.05596,89613.0,89600.0,0.21901076]
[1766998802959,0.05596,89613.0,89600.0,0.20783696]
[1766998803968,0.0111701,89630.0,89608.0,0.0111728]
[1766998804265,0.15092,89628.0,89610.0,0.17783696]
[1766998804462,0.15092,89628.0,89610.0,0.20783696]
[1766998809158,0.0111706,89627.0,89610.0,0.20783696]
[1766998809959,0.0111706,89627.0,89610.0,0.03]
[1766998810155,0.0111706,89627.0,89610.0,0.20783696]
[1766998810756,0.0111708,89625.0,89610.0,0.20783696]
[1766998812670,0.011171,89623.0,89610.0,0.20783696]
[1766998813070,0.0111717,89618.0,89610.0,0.03]
[1766998813272,0.0111712,89621.0,89608.0,0.05596]
[1766998813458,0.15092,89628.0,89611.0,0.00726]
[1766998814366,0.0111712,89622.0,89611.0,0.00726]
[1766998814773,0.0111715,89620.0,89611.0,0.00726]
[1766998815471,0.05596,89620.0,89580.0,0.06295342]
[1766998815670,0.17783696,89610.0,89598.0,4e-08]
[1766998815871,0.05596,89609.0,89587.0,0.05596]
[1766998816176,0.05596,89609.0,89587.0,0.08596]
[1766998816674,0.00016744,89607.0,89589.0,0.00016744]
[1766998816868,0.00016744,89607.0,89589.0,0.03016744]
[1766998817867,0.0111737,89602.0,89589.0,0.03016744]